Cogmind - Beta 14 @@@ ROGUE MODE // 2024.11.19 @ 14:11:10 Player: Fangrelle Result: Destroyed by as-98477 with Assembled Heavy Rifle Performance ------------- Evolutions (0) 0 Regions Visited (4) 800 Robots Destroyed (40) 200 Value Destroyed (808) 808 Prototype IDs (23) 460 Alien Tech Used (0) 0 Bonus (234) 234 TOTAL SCORE: 2502 Bonus ------- Aligned with FarCom 300 Friendly Fire -66 Cogmind --------- Core Integrity 0/250 Matter 232/300 Energy 70/100 System Corruption 1% Temperature Cool (90) Movement Rolling (145) Ox3 Location -9/Mines Parts ------- > --- POWER (1) -------- (None) > --- PROPULSION (2) --- Compact Wheel > --- UTILITY (2) ------ High-capacity Storage Unit Light Armor Plating > --- WEAPON (2) ------- Particle Gun Rocket Launcher > --- INVENTORY (20) --- Nuclear Core Nuclear Core Light Fission Core High-capacity Storage Unit Huge Storage Unit Sensor Array Signal Interpreter Signal Interpreter Improved Terrain Scanner Seismic Detector Cloak of Protection Tractor Beam EM Pulse Gun EM Pulse Gun Light Assault Rifle Heavy Battle Rifle Mining Laser Peak State ------------ > --- POWER ------------ Light Ion Engine > --- PROPULSION ------- Light Treads Compact Wheel > --- UTILITY ---------- High-capacity Storage Unit Visual Processing Unit > --- WEAPON ----------- EM Pulse Gun Heavy Battle Rifle > --- INVENTORY -------- High-capacity Storage Unit Huge Storage Unit Sensor Array Signal Interpreter Signal Interpreter Improved Terrain Scanner Seismic Detector Light Armor Plating Tractor Beam EM Pulse Gun Particle Gun Light Assault Rifle Rocket Launcher Mining Laser [Rating: 12] Favorites ----------- Power Light Ion Engine Engine Light Ion Engine Propulsion Light Treads Treads Light Treads Leg Aluminum Leg Wheel Compact Wheel Utility High-capacity Storage Unit Device Seismic Detector Storage High-capacity Storage Unit Processor Visual Processing Unit Protection Light Armor Plating Weapon EM Pulse Gun Energy Gun EM Pulse Gun Ballistic Gun Light Assault Rifle Launcher Rocket Launcher Special Weapon Mining Laser Build | -11 -10 -10 -10 -9 ------- Run | Yrd Mat Min Exi Min Slots Evolved . | . . . . . Power . | . . . . . Propulsion . | . . . . . Utility . | . . . . . Weapon . | . . . . . Parts Attached 28 | 3 13 8 1 3 Power 3 | . 2 1 . . Engine 3 | . 2 1 . . Core . | . . . . . Reactor . | . . . . . Propulsion 4 | 2 1 1 . . Treads 3 | 2 1 . . . Leg . | . . . . . Wheel 1 | . . 1 . . Hover . | . . . . . Flight . | . . . . . Utility 5 | 1 2 . 1 1 Device 1 | 1 . . . . Storage 2 | . 1 . 1 . Processor 1 | . 1 . . . Hackware . | . . . . . Protection 1 | . . . . 1 Artifact . | . . . . . Weapon 16 | . 8 6 . 2 Energy Gun 9 | . 5 3 . 1 Energy Cannon . | . . . . . Ballistic Gun 2 | . 1 1 . . Ballistic Cannon . | . . . . . Launcher 3 | . . 2 . 1 Special Weapon 2 | . 2 . . . Impact Weapon . | . . . . . Slashing Weapon . | . . . . . Piercing Weapon . | . . . . . Special Melee Weapon . | . . . . . Unidentified Prototypes . | . . . . . Parts Lost 10 | . 5 4 . 1 Power 4 | . 2 2 . . Propulsion 3 | . 1 1 . 1 Utility . | . . . . . Weapon 3 | . 2 1 . . Highest Loss Streak 2 | . 2 1 . 1 To Critical Strikes . | . . . . . Average Slot Usage (%) 87 | . 92 90 45 85 Engine 7 | . 10 5 . . Treads 24 | . 27 22 14 14 Wheel 3 | . . 5 14 14 Device 2 | . 4 . . . Storage 14 | . 14 14 14 14 Processor 10 | . 9 14 2 . Energy Gun 15 | . 18 16 . 14 Ballistic Gun 4 | . 4 7 . . Launcher 1 | . . 4 . 14 Special Weapon 1 | . 2 . . . Peak Build Rating 12 | 8 9 12 9 11 Average Rating 8 | 6 8 10 6 10 On Entrance 8 | 6 8 9 12 7 Naked Turns . | . . . . . Heaviest Build 49 | 12 47 49 40 . Greatest Support 40 | 40 40 40 16 . Greatest Overweight (x) 2 | . 2 2 2 . Average Overweight (x) 1 | . . 1 2 . Largest Inventory Capacity 20 | 8 20 20 20 20 Average Capacity 18 | 8 17 20 20 20 Most Carried 20 | 8 14 15 20 19 Average Carried 12 | 6 11 13 19 17 Final Capacity 20 | 8 20 20 20 20 Final Carried 20 | 8 13 14 20 17 Class Distribution -------------------- 100% | Mutant Dominant Class ---------------- Mutant | -10/Materials Mutant | -10/Mines Mutant | -10/Exiles Mutant | -9/Mines Resources | -11 -10 -10 -10 -9 ----------- Run | Yrd Mat Min Exi Min Matter Collected 612 | 222 157 233 . . Remotely . | . . . . . Salvage Created 1256 | 86 787 318 . 65 Parts 85 | 11 53 19 . 2 Haulers Intercepted 1 | . 1 . . . Recyclers Shooed 1 | . 1 . . . Parts Field Recycled . | . . . . . Retrieved Matter . | . . . . . Parts Self-Destructed . | . . . . . Prevented . | . . . . . Kills | -11 -10 -10 -10 -9 ------- Run | Yrd Mat Min Exi Min Combat Hostiles Destroyed 39 | . 14 11 . 14 Guns 18 | . 13 5 . . AOE 21 | . 1 6 . 14 Classes Destroyed 10 | 2 5 . . 3 Worker 2 | . . . . 2 Builder 3 | . 2 1 . . Tunneler 2 | 2 . . . . Hauler 1 | . 1 . . . Recycler 3 | 1 2 . . . Watcher 3 | . 3 . . . Swarmer 9 | . 6 3 . . Grunt 16 | . 8 8 . . Zionite 1 | . . . . 1 Assembled 14 | . . . . 14 Best Kill Streak 16 | 2 4 3 . 16 Combat Bots Only 14 | . 3 2 . 14 Max Kills in Single Turn 8 | 2 2 2 . 8 Gunslinging . | . . . . . Exploded 7 | . 1 2 . 7 Melee . | . . . . . Uniques/NPCs Destroyed . | . . . . . Combat | -11 -10 -10 -10 -9 -------- Run | Yrd Mat Min Exi Min Hostile Shots Fired 138 | . 70 47 . 21 Missed 44 | . 17 20 . 7 Damage Taken 1263 | . 691 317 . 255 Core 265 | . 118 72 . 75 Absorbed by Shields . | . . . . . Core Remaining (%) 100 | 100 . . . . Volleys Fired 108 | 7 68 30 . 3 Largest 2 | 2 2 2 . 2 Hottest 100 | 60 100 80 . 98 Shots Fired 198 | 14 122 56 . 6 Gun 180 | 14 116 47 . 3 Cannon . | . . . . . Launcher 12 | . . 9 . 3 Special 6 | . 6 . . . Kinetic 50 | 7 24 19 . . Thermal 9 | . 6 . . 3 Explosive 12 | . . 9 . 3 Electromagnetic 127 | 7 92 28 . . Robot Hit Streak 8 | 5 8 7 . 1 Robot Miss Streak 9 | 2 9 5 . 2 Penetration Max . | . . . . . Secondary Targets 1 | . 1 . . . Max Gunslinging Chain 1 | . 1 . . . Shots Hit Robots 112 | 8 70 32 . 2 Core Hits 78 | 4 29 18 . 27 Critical Kills . | . . . . . Critical Parts Destroyed . | . . . . . Critical Strikes 3 | . 3 . . . Corrupt 3 | . 3 . . . Melee Attacks . | . . . . . Impact . | . . . . . Slashing . | . . . . . Piercing . | . . . . . Sneak Attacks . | . . . . . Combat Hostiles . | . . . . . Follow-up Attacks . | . . . . . Damage Inflicted 3243 | 80 978 1000 . 1185 Guns 1445 | 80 857 479 . 29 Cannons . | . . . . . Explosions 1752 | . 87 509 . 1156 Melee . | . . . . . Ramming 46 | . 34 12 . . Kinetic 423 | 25 137 261 . . Thermal 201 | . 87 85 . 29 Explosive 1580 | . . 424 . 1156 Electromagnetic 993 | 55 720 218 . . Impact . | . . . . . Slashing . | . . . . . Piercing . | . . . . . Highest Corruption 1 | . 1 1 1 1 Average Corruption 1 | . 1 1 1 1 Corruption Purged . | . . . . . Corruption Blocked . | . . . . . Effects 37 | . 16 17 4 . Message Errors 7 | . 3 4 . . Matter Fused 7 | . 2 3 2 . Heat Flow Errors 7 | . 5 2 . . Energy Discharges 2 | . 1 . 1 . Parts Rejected 1 | . . 1 . . Data Loss (minor) 7 | . 1 5 1 . Data Loss (major) 2 | . . 2 . . Misfires 4 | . 4 . . . Overload Shots . | . . . . . Overflow Damage 47 | . . 16 . 31 Projectiles . | . . . . . Explosions 47 | . . 16 . 31 Melee . | . . . . . Knockbacks . | . . . . . Impact . | . . . . . Kinetic . | . . . . . Secondary . | . . . . . Self-Inflicted Damage 123 | . 64 . . 59 Shots 4 | . 2 . . 2 Rammed 7 | . 6 1 . . Targets Rammed 7 | . 6 1 . . Kicked . | . . . . . Crushed . | . . . . . Highest Temperature 254 | 40 254 132 . 90 Average Temperature 53 | 22 64 26 . 50 Received Heat Transfer 363 | . 225 138 . . Siege Activations . | . . . . . Robots Corrupted . | . . . . . Combat Hostiles . | . . . . . Parts Fried 5 | . 5 . . . Impact Corruptions . | . . . . . Robots Melted . | . . . . . Combat Hostiles . | . . . . . Parts Melted . | . . . . . Heat Transferred 224 | . 50 100 . 74 Parts Sabotaged . | . . . . . Parts Stolen . | . . . . . Parts Stripped . | . . . . . Power Chain Reactions 3 | . 2 1 . . Alert | -11 -10 -10 -10 -9 ------- Run | Yrd Mat Min Exi Min Peak Influence 140 | 15 122 140 . 33 Initial 9 | . 9 2 . . Average 32 | 7 29 37 . 15 Maximum Alert Level . | . . . . . Low Security (%) 100 | 100 100 100 . 100 Level 1 . | . . . . . Level 2 . | . . . . . Level 3 . | . . . . . Level 4 . | . . . . . Level 5 . | . . . . . High Security . | . . . . . Max Security . | . . . . . Squads Dispatched 2 | . 2 . . . Investigation 2 | . 2 . . . Extermination . | . . . . . Reinforcement . | . . . . . Assault . | . . . . . Garrison . | . . . . . Intercept . | . . . . . Searches Triggered . | . . . . . Construction Impeded . | . . . . . Haulers Reinforced . | . . . . . Active Scanning Responses . | . . . . . Cargo Convoy Interrupts . | . . . . . Stealth | -11 -10 -10 -10 -9 --------- Run | Yrd Mat Min Exi Min Distress Signals 1 | . 1 . . . Communications Jammed . | . . . . . Distress Signals . | . . . . . Times Spotted 49 | . 19 10 . 20 Peak Tracking Total 20 | . 3 2 . 20 Tactical Retreats 1 | . 1 . . . Traps | -11 -10 -10 -10 -9 ------- Run | Yrd Mat Min Exi Min Traps Triggered 2 | . 2 . . . Indirectly . | . . . . . Trap Hack Attempts . | . . . . . Triggered . | . . . . . Disarmed . | . . . . . Reprogrammed . | . . . . . Reused . | . . . . . Traps Extracted . | . . . . . Installed . | . . . . . Triggered . | . . . . . Machines | -11 -10 -10 -10 -9 ---------- Run | Yrd Mat Min Exi Min Machines Disabled 1 | . . 1 . . Max in Single Turn 1 | . . 1 . . Machines Repaired . | . . . . . Machines Dismantled . | . . . . . Machines Sabotaged . | . . . . . Overloaded Fab Kills . | . . . . . Hacking | -11 -10 -10 -10 -9 --------- Run | Yrd Mat Min Exi Min Machines Accessed 10 | . 8 . 2 . Terminals 7 | . 7 . . . Fabricators . | . . . . . Repair Stations . | . . . . . Recycling Units 1 | . 1 . . . Scanalyzers . | . . . . . Garrison Access . | . . . . . Total Hacks 27 | . 22 . 5 . Successful 18 | . 13 . 5 . Failed 9 | . 9 . . . Catastrophic 1 | . 1 . . . Database Lockouts . | . . . . . Manual 22 | . 21 . 1 . Terminals 19 | . 19 . . . Fabricators . | . . . . . Repair Stations . | . . . . . Recycling Units 3 | . 3 . . . Scanalyzers . | . . . . . Garrison Access . | . . . . . Terminal Hacks 5 | . . . 5 . Record 4 | . . . 4 . Derelict Proto ID Bank 1 | . . . 1 . Fabricator Hacks . | . . . . . Repair Station Hacks . | . . . . . Recycling Unit Hacks 1 | . 1 . . . Retrieve Components 1 | . 1 . . . Scanalyzer . | . . . . . Garrison Access Hacks . | . . . . . Unauthorized Hacks 12 | . 12 . . . Terminals 12 | . 12 . . . Assimilate 5 | . 5 . . . Botnet 5 | . 5 . . . Operators 1 | . 1 . . . Skim 1 | . 1 . . . Fabricators . | . . . . . Repair Stations . | . . . . . Recycling Units . | . . . . . Scanalyzers . | . . . . . Garrison Access . | . . . . . Data Cores Recovered . | . . . . . Used . | . . . . . Hacking Detections 8 | . 8 . . . Full Trace Events 1 | . 1 . . . Feedback Events 1 | . 1 . . . Corruption 1 | . 1 . . . Feedback Blocked . | . . . . . Robot Schematics Acquired . | . . . . . Robots Built . | . . . . . Authchips . | . . . . . Time . | . . . . . Total Robot Build Rating . | . . . . . Part Schematics Acquired . | . . . . . Parts Built . | . . . . . Authchips . | . . . . . Time . | . . . . . Total Part Build Rating . | . . . . . Parts Repaired . | . . . . . Time . | . . . . . Parts Recycled . | . . . . . Recycled Matter . | . . . . . Retrieved Matter . | . . . . . Retrieved Components 10 | . 10 . . . Parts Scanalyzed . | . . . . . Part Schematics Acquired . | . . . . . Parts Damaged . | . . . . . Bothacking | -11 -10 -10 -10 -9 ------------ Run | Yrd Mat Min Exi Min Used RIF Installer . | . . . . . Robots Hacked . | . . . . . Non-combat . | . . . . . Combat . | . . . . . Robot Hacks Applied . | . . . . . Relay Couplers Released . | . . . . . Fabnet Peak Effective % . | . . . . . Robots Rewired . | . . . . . Allies Hacked . | . . . . . Hacks Repelled . | . . . . . Allies | -11 -10 -10 -10 -9 -------- Run | Yrd Mat Min Exi Min Total Allies 1 | . 1 . . . Largest Group 1 | . 1 1 1 1 Highest-Rated Group 10 | . 10 10 10 10 Highest-Rated Ally 10 | . 10 10 10 10 Total Orders 5 | . 2 2 . 1 STAY 3 | . 1 1 . 1 FOLLOW 2 | . 1 1 . . Ally Attacks . | . . . . . Total Damage . | . . . . . Kills . | . . . . . Allies Corrupted . | . . . . . Allies Melted . | . . . . . Intel | -11 -10 -10 -10 -9 ------- Run | Yrd Mat Min Exi Min Robot Analysis Total . | . . . . . Derelict Logs Recovered 1 | . . 1 . . Drone Launches . | . . . . . Drone Recoveries . | . . . . . Exploration | -11 -10 -10 -10 -9 ------------- Run | Yrd Mat Min Exi Min Turns Passed 5702 | 114 3072 1962 542 12 Spaces Moved 2343 | 57 1067 811 408 . Core . | . . . . . Treads 1661 | 38 1067 556 . . Legs 19 | 19 . . . . Wheels 663 | . . 255 408 . Hover . | . . . . . Flight . | . . . . . Fastest Speed 120 | 120 160 130 130 . Average Speed 201 | 146 221 216 130 . Slowest Speed 320 | 160 320 320 130 . Overloaded Moves . | . . . . . Propulsion Burnouts . | . . . . . Robots Hopped . | . . . . . Cave-ins Triggered . | . . . . . Exploration Rate (%) 55 | 5 98 97 70 5 Regions Visited 4 Branch Regions 3 Pre-discovered Areas 2 | . . 1 1 . Known Exits Taken . | . . . . . Unknown Exits Taken 4 | 1 1 1 1 . Scrap Searched 1 | . . 1 . . Spaces Dug 3 | . 3 . . . Terrain Destroyed 122 | . 13 81 . 28 Melee . | . . . . . Projectile 10 | . 6 4 . . AOE 112 | . 7 77 . 28 Terrain Rammed . | . . . . . Walls Destroyed . | . . . . . Machines Disabled . | . . . . . Actions | -11 -10 -10 -10 -9 --------- Run | Yrd Mat Min Exi Min Total 3112 | 78 1647 960 421 6 Wait 585 | . 473 107 5 . Move 2339 | 56 1066 810 407 . Hop . | . . . . . Pick Up 28 | 7 13 4 4 . Fast Attach 7 | 1 4 1 1 . Attach 9 | 2 1 3 . 3 Detach 2 | . . . 2 . Swap 12 | . 8 4 . . Drop 15 | 5 8 . 2 . Fire 108 | 7 68 30 . 3 Melee . | . . . . . Ram . | . . . . . Kick . | . . . . . Crush 7 | . 6 1 . . Escape Stasis . | . . . . . Rewire . | . . . . . Trap . | . . . . . Miscellaneous . | . . . . . Route ------- -11/Scrapyard -10/Materials (discovered 4 exits: [*Mat x3] / [*Min]) -10/Mines (discovered 3 exits: [*Mat x2] / *Exi) -10/Exiles (discovered 2 exits: [*Min x2]) -9/Mines History --------- Turn | Location | Event 1 | -11/Scrapyard | Discovered new exit (range 1) 115 | -11/Scrapyard | Entered Materials 316 | -10/Materials | Build established: Mutant 423 | -10/Materials | Discovered new exit (range 8) 789 | -10/Materials | Discovered new exit (range 13) 980 | -10/Materials | Discovered new exit (range 13) 1531 | -10/Materials | Discovered new exit (range 9) 3187 | -10/Materials | Entered Mines 3187 | -10/Mines | Accompanied by 1 ally 3194 | -10/Mines | Received a Rocket Launcher from a helpful Derelict 3569 | -10/Mines | Core integrity fell below 50% 3721 | -10/Mines | Discovered new exit (range 12) 3753 | -10/Mines | Learned location of Storage (-8) 3874 | -10/Mines | Discovered new exit (range 6) 4141 | -10/Mines | A weapon hastily lodged in a ceiling crevice suddenly fell to the ground 4777 | -10/Mines | Learned location of 1 exit from Materials 4864 | -10/Mines | Deemed a non-threat by the Exiles lab entrance 4864 | -10/Mines | Discovered new exit (range 5) 5149 | -10/Mines | Entered Exiles 5149 | -10/Exiles | Accompanied by 1 ally 5172 | -10/Exiles | Discovered new exit (range 17) 5189 | -10/Exiles | Met 8R-AWN 5208 | -10/Exiles | Met EX-HEX 5279 | -10/Exiles | Met EX-DEC 5391 | -10/Exiles | Learned location of Zion (-6) 5507 | -10/Exiles | Met EX-BIN 5523 | -10/Exiles | Aligned with FarCom system 5524 | -10/Exiles | Given EX-Vault access code 5554 | -10/Exiles | Opened EX-Vault 5560 | -10/Exiles | Found Cloak of Protection 5590 | -10/Exiles | Warned to stay clear of 0b10 Research branches 5608 | -10/Exiles | Exiles lab attacked by MAIN.C 5669 | -10/Exiles | Discovered new exit (range 12) 5691 | -10/Exiles | Left Exiles lab with Cloak of Protection 5691 | -10/Exiles | Entered Mines 5691 | -9/Mines | Accompanied by 1 ally 5692 | -9/Mines | Assembled infested the area 5695 | -9/Mines | Core integrity fell below 20% 5703 | -9/Mines | Destroyed by as-98477 with Assembled Heavy Rifle Last Messages --------------- 05694_ as-78551 destroyed. 05694_ as-84156 destroyed. 05694_ as-65788 destroyed. 05694_ as-11428 destroyed. 05694_ as-76383 destroyed. 05696_ K-01 Serf collects debris. 05697_ as-73490 destroyed. 05697_ 5L-KAT destroyed. 05697_ as-15119 destroyed. 05697_ as-41777 destroyed. 05700_ as-00252 destroyed. 05700_ Destroyed Asb. Hover Unit. 05700_ as-56065 destroyed. 05700_ Destroyed Asb. Heavy Rifle. 05700_ as-89552 destroyed. 05700_ Destroyed Wheel. 05700_ Destroyed Lgt. Ion Engine. 05700_ K-01 Serf destroyed. 05700_ as-35572 destroyed. 05702_ Lgt. Treads destroyed. Map ----- +----------------------------------------------------+ | | | | | | | | | | | | | | | | | | | | | | | | | | | | | | | | | ?????????????????????????????????????????????????? | | ?????????????????????????????????????????????????? | | ????????????#??????????###???????????????????????? | | ???????????? ###?##### ##?????????????????????? | | ???????????? # #?????????????????????? | | ??????????? a ##????????????????????? | | ???????????# % a ?????????????????????? | | ????????????# <% a % #?????????????????????? | | ????????????# ! ##????????????????????? | | ?????????????# % * % a@ #????????????????????? | | ????????????# % ##????????????????????? | | ???????????# ## #?????????????????????? | | ??????????? ???######?????????????????????? | | ???????????# ?????????????????????????????????? | | ????????????#????????????????????????????????????? | | ?????????????????????????????????????????????????? | | ?????????????????????????????????????????????????? | | ?????????????????????????????????????????????????? | | ?????????????????????????????????????????????????? | | ?????????????????????????????????????????????????? | | ?????????????????????????????????????????????????? | | ?????????????????????????????????????????????????? | | ?????????????????????????????????????????????????? | | ?????????????????????????????????????????????????? | | ?????????????????????????????????????????????????? | | ?????????????????????????????????????????????????? | | ?????????????????????????????????????????????????? | | ?????????????????????????????????????????????????? | | ?????????????????????????????????????????????????? | | ?????????????????????????????????????????????????? | | ?????????????????????????????????????????????????? | | ?????????????????????????????????????????????????? | | ?????????????????????????????????????????????????? | | ?????????????????????????????????????????????????? | +----------------------------------------------------+ Best States ------------- Heat Dissipation 25 Energy Generation 10 Energy Capacity 125 Matter Stores 300 Matter Capacity 300 Sight Range 18 Terrain Scan Density 10 Armor Coverage 150 Evasion (%) 50 Recoil Reduction 2 Item Schematics ----------------- None Robot Schematics ------------------ None Fabricated ------------ Nothing Alien Tech Used ----------------- None Achievements -------------- None Challenges ------------ None Game ------ Seed PotentialBoltObliterator Manual? 0 Play Time 00:20:00 Cumulative 118.7 hours Start 2024.11.19 @ 13:49:30 End 2024.11.19 @ 14:11:10 Sessions 1 Manual Loads 0 Difficulty Rogue Special Mode None Game No. 222 Rogue 222 Adventurer 0 Explorer 0 Win Type - Total 0 Types 0/0/0/0/0/0/0/0/0 Lore% 42 Gallery% 40 Achievement% 35 Wizard Run 0 Options --------- Layout 0 ASCII 0 Keyboard 0 Movement Mouse Keybinds 0 Fullscreen 1 Font 24/Smallcaps Map View 91x25 Zoom Use 72% Tactical HUD 1 Map Filters NONE Filters NONE Steam 1 RUN: 8dee0d13-4dcb-4048-b7fc-0962fbd649d5